bitfinex-derivatives/quotes_ETHF0:USTF0_20240917
["timestamp","ask_amount","ask_price","bid_price","bid_amount"]
[1726605820014,4.2544,2350.6,2349.9,1.99909]
[1726605820210,3.2078,2350.7,2349.9,6.57975712]
[1726605820211,3.2078,2350.0,2349.9,6.57975712]
[1726605820407,3.2078,2350.0,2349.9,5.00605712]
[1726605820616,7.463,2350.0,2349.3,2.0752]
[1726605820915,3.2078,2349.4,2349.3,1.6497]
[1726605821106,3.2078,2349.4,2349.3,6.65575712]
[1726605822506,2.41983812,2349.4,2349.3,7.08125712]
[1726605822707,3.2078,2349.8,2349.3,17.33804712]
[1726605822904,3.2078,2349.8,2349.4,0.42548]
[1726605823415,3.2078,2349.8,2349.4,5.43153712]
[1726605824011,3.2078,2349.8,2349.5,0.42547]
[1726605824521,3.2078,2349.8,2349.5,5.00605712]
[1726605824721,3.2078,2349.8,2349.5,5.43151712]
[1726605825530,3.2078,2349.8,2349.6,0.42544]
[1726605825830,3.2078,2349.8,2349.5,5.00605712]
[1726605826423,3.2078,2349.8,2349.6,0.42544]
[1726605826731,3.2078,2349.8,2349.7,0.42543]
[1726605826933,3.2078,2349.8,2349.6,0.42544]
[1726605827326,3.2078,2349.8,2349.7,0.42543]
[1726605827525,3.2078,2349.8,2349.7,5.00605712]
[1726605829630,3.2078,2349.8,2349.7,5.43148712]
[1726605830132,3.2078,2350.1,2349.7,19.34205712]
[1726605830324,3.2078,2350.1,2349.9,0.42538]
[1726605830632,3.2078,2350.1,2349.9,5.43143712]
[1726605831131,3.2078,2350.1,2350.0,0.42538]
[1726605831529,3.2078,2350.1,2350.0,5.43143712]
[1726605831926,3.2078,2350.1,2350.0,9.68663712]
[1726605834127,3.2078,2350.4,2350.2,0.42533]
[1726605834531,3.2078,2350.4,2350.2,5.43138712]
[1726605836135,3.2078,2350.4,2350.0,0.42537]
[1726605836439,3.2078,2350.1,2350.0,0.42537]
[1726605836736,3.2078,2350.1,2350.0,5.00605712]
[1726605836936,3.2078,2350.1,2350.0,5.43143712]
[1726605837932,1.43245421,2350.1,2350.0,5.43143712]
[1726605838238,3.2078,2350.7,2350.5,0.42528]
[1726605838433,3.2078,2350.7,2350.6,0.42527]
[1726605838638,1.6239,2350.8,2350.5,0.42527]
[1726605838931,7.3628,2351.0,2350.4,0.42531]
[1726605839136,3.2078,2351.0,2350.7,0.42524]
[1726605839629,3.2078,2351.0,2350.7,5.43129712]
[1726605840033,3.633,2351.0,2350.6,3.74526]
[1726605840230,3.2078,2350.7,2350.5,7.10383712]
[1726605840936,3.63301,2351.0,2350.6,0.42527]
[1726605841139,3.2078,2351.0,2350.6,5.43132712]
[1726605841536,3.2078,2351.0,2350.8,0.42523]
[1726605841735,3.2078,2351.0,2350.8,5.00605712]
[1726605846142,4.2536,2350.9,2350.7,0.42525]
[1726605846337,3.633,2351.0,2350.6,0.42526]
[1726605846548,0.4252,2351.0,2350.7,0.42525]
[1726605846752,3.2078,2350.9,2350.7,0.42525]
[1726605847948,3.2078,2350.9,2350.8,0.42523]
[1726605848451,3.2078,2350.9,2350.8,5.43128712]
[1726605848951,3.2078,2350.9,2350.8,5.00605712]
[1726605849148,3.2078,2351.2,2350.8,5.43128712]
[1726605849348,3.63297,2351.2,2350.8,5.43128712]
[1726605849652,3.2078,2350.9,2350.8,5.00605712]
[1726605849950,0.42517,2351.2,2350.8,5.43127712]
[1726605849951,3.2078,2351.2,2350.8,5.43127712]
[1726605850139,11.02471,2351.5,2351.0,3.32]
[1726605850339,11.02471,2351.5,2351.0,8.75124712]
[1726605850340,0.42513,2351.4,2351.0,8.75124712]
[1726605850745,3.2078,2351.2,2351.0,8.75124712]
[1726605852052,3.2078,2351.2,2351.0,8.32605712]
[1726605852242,4.2536,2351.1,2350.7,3.74524]
[1726605852443,3.2078,2350.9,2350.8,0.42523]
[1726605852744,3.2078,2351.2,2350.7,8.32605712]
[1726605852949,3.2078,2350.9,2350.7,8.75129712]
[1726605853148,3.2078,2350.9,2350.3,3.87157367]
[1726605853453,3.2078,2350.6,2350.3,5.00605712]
[1726605853748,0.42529,2350.5,2350.0,2.03657]
[1726605853952,3.2078,2350.3,2350.0,7.04263712]
[1726605854951,3.2078,2350.3,2350.0,7.04261712]
[1726605855357,4.31571715,2350.3,2350.0,7.04261712]
[1726605856847,4.31571715,2350.3,2350.0,6.61725712]
[1726605857649,4.31571715,2350.3,2350.0,7.04262712]
[1726605857949,4.31571715,2350.3,2350.0,6.61725712]
[1726605858350,1.10791715,2350.2,2350.0,6.61725712]
[1726605859259,1.10791715,2350.2,2350.0,5.00605712]
[1726605860251,1.10791715,2350.1,2350.0,5.00605712]
[1726605862762,1.10791715,2350.1,2349.9,3.32]
[1726605862953,1.10791715,2350.1,2349.9,8.32605712]
[1726605865769,1.10791715,2350.0,2349.9,8.32605712]
[1726605866355,1.10791715,2350.1,2349.9,8.32605712]
[1726605866561,5.27753248,2350.2,2349.9,8.32605712]
[1726605866562,1.10791715,2350.0,2349.9,8.32605712]
[1726605867062,0.42541,2349.9,2349.7,1.5994]
[1726605867258,0.42541,2349.9,2349.1,7.60132734]
[1726605867259,0.42543,2349.7,2349.3,4.08196822]
[1726605867459,4.31761266,2349.6,2349.3,3.7455]
[1726605867762,1.10981266,2349.5,2349.3,8.75155712]
[1726605868569,1.10981266,2349.5,2349.3,8.32605712]
[1726605868865,1.10981266,2349.4,2349.3,8.32605712]
[1726605869166,1.10981266,2349.4,2349.3,8.75155712]
[1726605869566,1.10981266,2349.5,2349.3,8.32605712]
[1726605870465,1.10936071,2349.5,2349.4,3.32]
[1726605870962,1.10936071,2349.5,2349.4,8.32605712]
[1726605872957,1.10936071,2349.5,2349.4,3.32]
[1726605873167,1.10936071,2349.5,2349.2,4.924]
[1726605873362,4.31716071,2349.3,2348.8,0.21667596]
[1726605873569,1.10831154,2349.1,2348.8,5.00605712]
[1726605873862,1.10831154,2349.1,2348.4,4.8731]
[1726605873863,1.064,2348.8,2348.3,3.32]
[1726605874073,3.2078,2348.5,2348.1,9.89145712]
[1726605874263,4.74160885,2348.5,2348.1,9.89145712]
[1726605874463,3.2078,2348.5,2348.2,0.4257]
[1726605874674,3.2078,2348.5,2348.4,0.42567]
[1726605874863,3.2078,2348.5,2348.4,5.43172712]
[1726605876966,3.2078,2348.8,2348.5,0.42564]
[1726605877165,3.2078,2348.8,2348.6,3.32]
[1726605877571,3.2078,2348.8,2348.6,8.32605712]
[1726605877869,3.2078,2348.8,2348.7,1.6054]
[1726605878371,3.2078,2348.8,2348.7,6.61145712]
[1726605880463,1.10814885,2349.2,2348.7,7.03705712]
[1726605880464,4.31594885,2349.2,2348.7,7.03705712]
[1726605880673,3.2078,2349.2,2348.9,3.32]
[1726605881080,3.2078,2349.2,2348.9,8.32605712]
[1726605881266,3.2078,2349.2,2348.9,5.00605712]
[1726605881461,3.2078,2349.2,2348.7,1.6054]
[1726605881462,0.42554,2349.1,2348.7,1.6054]
[1726605881761,3.2078,2348.9,2348.7,6.61145712]
[1726605881967,0.4256,2348.8,2348.4,3.6648827]
[1726605882164,3.2078,2348.6,2348.4,8.32605712]
[1726605882364,0.4256,2348.8,2348.4,8.32605712]
[1726605882672,3.2078,2348.6,2348.4,8.32605712]
[1726605885267,0.4256,2348.8,2348.4,8.32605712]
[1726605885565,3.2078,2348.6,2348.4,5.00605712]
[1726605887868,0.42565,2348.5,2348.2,3.391]
[1726605888073,3.2078,2348.3,2348.2,8.39705712]
[1726605892878,3.2078,2348.3,2348.2,6.71335712]
[1726605894074,7.4662,2348.3,2347.9,0.63943157]
[1726605894274,3.2078,2348.3,2347.9,5.64548869]
[1726605894675,3.2078,2348.3,2347.9,5.64547869]
[1726605895076,3.2078,2348.3,2347.9,5.00605712]
[1726605895386,3.2078,2348.0,2347.9,5.00605712]
[1726605900877,3.2078,2348.5,2347.9,9.26525712]
[1726605901087,4.155,2348.6,2348.2,3.32]
[1726605901088,4.58064,2348.6,2348.2,3.32]
[1726605901278,3.2078,2348.5,2348.2,3.32]
[1726605901481,3.2078,2348.5,2348.2,8.32605712]
[1726605902180,3.63345,2348.5,2348.2,8.32605712]
[1726605902382,3.2078,2348.5,2348.2,8.32605712]
[1726605902688,3.63345,2348.5,2348.2,8.32605712]
[1726605903079,3.2078,2348.5,2348.2,8.32605712]
[1726605903588,3.2078,2348.5,2348.2,5.00605712]
[1726605904784,4.8035,2348.8,2348.4,3.32]
[1726605904987,3.2078,2348.8,2348.6,0.42563]
[1726605905189,3.2078,2348.8,2348.6,3.32]
[1726605905386,3.2078,2348.8,2348.6,8.75167712]
[1726605905588,3.2078,2348.8,2348.6,8.32605712]
[1726605906485,3.2078,2348.8,2348.6,5.00605712]
[1726605906679,3.2078,2348.8,2348.5,1.5991]
[1726605906680,0.42562,2348.7,2348.5,1.5991]
[1726605906889,4.31594885,2348.8,2348.5,1.5991]
[1726605907091,4.31594885,2348.8,2348.5,6.60515712]
[1726605907291,3.6334,2348.8,2348.5,6.60515712]
[1726605907485,4.31594885,2348.8,2348.5,6.60515712]
[1726605907685,3.2078,2348.8,2348.5,6.60515712]
[1726605908495,4.31594885,2348.8,2348.5,6.60515712]
[1726605909500,4.74154885,2348.8,2348.5,6.60515712]
[1726605909690,1.10814885,2348.7,2348.5,6.60515712]
[1726605909887,1.53376885,2348.7,2348.5,6.60515712]
[1726605910587,1.10814885,2348.6,2348.5,6.60515712]
[1726605910797,1.10814885,2348.6,2347.3,1.66735995]
[1726605910798,7.5776,2348.6,2347.9,0.42576]
[1726605910983,3.2078,2348.0,2347.9,1.5859]
[1726605911190,3.2078,2348.0,2347.5,0.42582]
[1726605911191,0.42577,2347.9,2347.5,0.42582]
[1726605911484,3.2078,2347.6,2347.5,5.00605712]
[1726605912788,3.2078,2347.6,2347.5,5.43188712]
[1726605912991,1.10604374,2347.8,2347.5,8.32605712]
[1726605913186,1.10604374,2347.8,2347.5,8.75187712]
[1726605913695,1.10604374,2347.8,2347.6,0.42581]
[1726605913997,1.10604374,2347.8,2347.6,5.00605712]
[1726605914600,1.10604374,2347.7,2347.6,5.43186712]
[1726605915098,1.87120602,2347.7,2347.2,0.42588]
[1726605915305,3.2078,2347.4,2347.2,6.71985712]
[1726605916096,3.2078,2347.4,2347.3,3.32]
[1726605916402,2.08399555,2347.7,2347.3,3.32]
[1726605916403,4.3132637,2347.7,2347.3,3.32]
[1726605916696,1.1054637,2347.6,2347.3,5.00605712]
[1726605916892,3.2078,2347.4,2347.3,5.00605712]
[1726605917692,3.2078,2347.4,2347.3,5.43192712]
[1726605918096,3.2078,2347.4,2347.3,5.00605712]
[1726605919401,3.2078,2347.4,2347.3,8.75192712]
[1726605919698,1.65819555,2347.7,2347.4,0.42584]
[1726605919699,1.1054637,2347.7,2347.4,0.42584]
[1726605920099,1.1054637,2347.7,2347.4,5.43189712]
[1726605920296,1.1054637,2347.7,2347.4,5.00605712]
[1726605920503,1.1054637,2347.6,2347.4,5.43190712]
[1726605920799,1.1054637,2347.7,2347.4,5.00605712]
[1726605921006,1.1054637,2347.7,2347.6,0.42581]
[1726605921301,1.66042799,2348.2,2348.1,0.42571]
[1726605921492,7.6187,2348.7,2348.2,0.4257]
[1726605921493,9.0939,2348.7,2348.2,0.4257]
[1726605921695,0.2129163,2348.6,2348.3,1.6247]
[1726605921890,0.2129163,2348.6,2348.4,1.5637]
[1726605922094,4.9389,2348.7,2348.4,5.30936]
[1726605922095,3.2078,2348.7,2348.4,5.30936]
[1726605922294,3.2078,2348.7,2348.4,5.33122701]
[1726605923198,0.42564,2348.6,2348.4,1.58556701]
[1726605923397,3.63343,2348.7,2348.1,0.42572]
[1726605923603,3.2078,2348.4,2348.1,1.6678]
[1726605923804,3.2078,2348.4,2348.1,1.68966701]
[1726605923997,3.2078,2348.4,2348.1,2.11537701]
[1726605924195,3.2078,2348.4,2348.2,3.7457]
[1726605924602,3.2078,2348.4,2348.2,3.76756701]
[1726605925103,3.2078,2348.4,2348.3,0.42569]
[1726605925306,3.2078,2348.4,2348.3,4.2584]
[1726605925503,3.2078,2348.4,2348.3,4.28026701]
[1726605925713,3.2078,2348.4,2348.3,0.02186701]
[1726605926006,3.2078,2348.4,2348.3,3.34186701]
[1726605926401,3.2078,2348.4,2348.3,0.02186701]
[1726605927005,3.2078,2348.4,2348.3,8.02595701]
[1726605927201,2.77531917,2349.0,2348.7,0.42561]
[1726605927394,0.21291369,2348.9,2348.7,3.32]
[1726605927598,6.40864917,2349.2,2348.8,1.6562]
[1726605927599,3.2078,2349.2,2348.8,1.6562]
[1726605927803,0.21288529,2349.1,2348.8,1.6562]
[1726605927998,0.21288529,2349.1,2348.8,1.67806701]
[1726605928398,3.2078,2349.2,2348.9,3.74557]
[1726605928606,3.2078,2349.2,2348.9,3.34186701]
[1726605929707,3.2078,2349.2,2348.9,0.02186701]
[1726605930003,0.21288277,2349.1,2348.8,1.6562]
[1726605930207,0.21288277,2349.1,2348.8,1.67806701]
[1726605930412,0.21288277,2349.1,2348.8,2.10365701]
[1726605930599,3.2078,2349.2,2348.8,2.10365701]
[1726605930998,3.2078,2349.2,2348.8,1.67806701]
[1726605931204,3.63332,2349.2,2348.8,2.10364701]
[1726605931605,3.2078,2349.2,2348.8,2.10364701]
[1726605932401,3.2078,2349.2,2348.8,1.67806701]
[1726605932702,3.2078,2349.2,2349.1,0.42554]
[1726605932903,3.2078,2349.2,2349.0,0.42555]
[1726605933109,3.2078,2349.2,2348.9,0.42557]
[1726605933324,3.2078,2349.2,2349.0,0.42556]
[1726605933704,3.2078,2349.2,2349.0,0.44742701]
[1726605935915,0.42549,2349.4,2349.0,0.44742701]
[1726605936102,4.9322,2349.6,2349.0,0.02186701]
[1726605936302,0.63834262,2349.5,2349.1,0.42554]
[1726605936513,0.21286018,2349.4,2349.1,0.42554]
[1726605936704,5.35766,2349.6,2349.2,0.42552]
[1726605936900,5.35766,2349.6,2349.2,0.63324043]
[1726605937104,4.9322,2349.6,2349.2,0.22958744]
[1726605937311,5.35766,2349.6,2349.2,0.65510744]
[1726605938209,3.2078,2349.6,2349.2,0.22958744]
[1726605938408,3.2078,2349.9,2349.3,0.42549]
[1726605938611,0.42545,2349.7,2349.3,0.4255]
[1726605938809,0.42545,2349.7,2349.3,0.44736701]
[1726605939411,4.8602,2349.9,2349.3,0.44736701]
[1726605939412,4.8602,2349.9,2349.4,0.42548]
[1726605939718,0.42544,2349.7,2349.4,0.44734701]
[1726605940016,0.42546,2349.6,2349.4,0.02186701]
[1726605940310,0.42546,2349.6,2348.9,1.5429]
[1726605940311,3.2078,2349.1,2347.9,1.10917025]
[1726605940512,3.2078,2348.2,2347.9,0.2132197]
[1726605940828,3.2078,2348.2,2347.8,0.42577]
[1726605941115,3.2078,2348.2,2347.8,0.63522249]
[1726605941306,3.2078,2348.2,2347.5,4.7307]
[1726605941503,3.2078,2348.2,2347.7,0.42578]
[1726605941710,3.2078,2348.2,2347.8,0.42578]
[1726605942003,3.2078,2348.2,2348.0,0.42573]
[1726605942204,3.2078,2348.5,2348.1,1.5132]
[1726605942410,3.2078,2348.2,2348.1,1.5132]
[1726605942801,3.2078,2348.2,2347.5,3.781235]
[1726605943008,3.2078,2347.9,2347.6,1.5132]
[1726605943210,3.2078,2347.9,2347.7,0.42579]
[1726605944010,3.2078,2347.9,2347.6,1.5132]
[1726605944407,3.2078,2347.9,2347.7,0.42578]
[1726605945212,3.2078,2348.3,2347.9,0.42575]
[1726605945404,3.2078,2348.0,2347.8,0.42576]
[1726605945607,3.2078,2348.0,2347.6,1.5132]
[1726605946816,3.2078,2348.0,2347.6,1.939]
[1726605947514,3.2078,2348.0,2347.6,1.5132]
[1726605947721,3.2078,2348.0,2347.7,0.42579]
[1726605948508,3.2078,2348.0,2347.8,0.42578]
[1726605948712,3.2078,2348.0,2347.7,0.42578]
[1726605948921,3.2078,2348.0,2347.8,0.42577]
[1726605949107,3.2078,2348.0,2347.9,0.42576]
[1726605949617,3.2078,2348.0,2347.9,4.68496]
[1726605952121,3.2078,2348.0,2347.9,0.42576]
[1726605953920,3.2078,2348.4,2347.9,14.00496]
[1726605954119,3.2078,2348.4,2348.0,1.5116]
[1726605954424,3.2078,2348.4,2348.2,0.42569]
[1726605955117,3.2078,2348.4,2348.3,0.42569]
[1726605955521,4.7806,2348.7,2348.3,7.5784]
[1726605955829,4.7806,2348.7,2348.5,0.42564]
[1726605955830,3.2078,2348.7,2348.5,0.42564]
[1726605956222,3.2078,2348.7,2348.4,1.5666]
[1726605956223,3.2078,2348.7,2348.4,4.8866]
[1726605956526,3.2078,2348.7,2348.5,0.42565]
[1726605956726,3.2078,2348.7,2348.4,4.8866]
[1726605956922,3.2078,2348.7,2348.6,0.42563]
[1726605957422,3.2078,2348.7,2348.6,8.00323]
[1726605957624,4.155,2349.0,2348.6,4.2576]
[1726605957825,3.2078,2348.8,2348.7,0.63616164]
[1726605958025,3.2078,2348.8,2348.6,0.42562]
[1726605958623,3.2078,2348.8,2348.7,0.42561]
[1726605958825,3.2078,2348.8,2348.6,0.42562]
[1726605959827,3.2078,2348.8,2348.7,0.42561]
[1726605960433,3.2078,2349.1,2348.7,7.79436085]
[1726605960632,3.2078,2349.1,2348.9,0.42557]
[1726605961222,3.2078,2349.1,2349.0,0.42556]
[1726605961429,1.6561,2349.3,2349.0,7.5768]
[1726605961729,3.2078,2349.4,2349.1,1.6005]
[1726605961919,3.6333,2349.4,2349.0,0.42555]
[1726605962821,3.2078,2349.4,2349.1,0.42554]
[1726605963225,3.2078,2349.4,2349.1,3.32]
[1726605963432,3.2078,2349.4,2349.2,0.42552]
[1726605964128,3.2078,2349.4,2349.1,3.74553]
[1726605965229,3.2078,2349.4,2349.2,0.42552]
[1726605965426,3.2078,2349.4,2349.3,0.4255]
[1726605965925,3.2078,2349.4,2349.3,4.6823]
[1726605966123,3.2078,2349.4,2349.2,3.74551]
[1726605966438,3.2078,2349.4,2349.1,2.09853]
[1726605966823,3.2078,2349.4,2349.1,0.42554]
[1726605967025,0.42551,2349.3,2348.8,0.42559]
[1726605967324,3.2078,2349.0,2348.7,0.64236085]
[1726605967520,3.2078,2349.0,2348.7,0.97633596]
[1726605967731,3.2078,2349.0,2348.7,0.55073596]
[1726605967932,3.2078,2349.0,2348.8,0.42559]
[1726605969431,3.2078,2349.0,2348.9,0.42558]
[1726605969927,3.2078,2349.3,2348.9,10.2576]
[1726605970123,3.2078,2349.3,2349.2,3.74552]
[1726605970733,3.2078,2349.3,2349.2,8.00232]
[1726605971027,3.2078,2349.6,2349.4,0.42547]
[1726605971234,3.2078,2349.6,2349.3,2.144]
[1726605973229,3.2078,2349.6,2349.1,3.32]
[1726605973435,3.2078,2349.6,2349.3,0.4255]
[1726605973624,3.2078,2349.4,2349.3,0.4255]
[1726605973831,0.97113214,2350.3,2349.4,18.99946006]
[1726605974030,3.81346427,2351.2,2349.4,18.99946006]
[1726605974031,1.6783,2351.1,2350.7,0.42524]
[1726605974233,1.6783,2351.1,2350.8,3.32]
[1726605974439,1.6783,2351.1,2350.8,3.52842557]
[1726605974636,1.6783,2351.1,2350.8,3.95364557]
[1726605975136,1.6783,2351.1,2350.8,3.52842557]
[1726605975339,1.6783,2351.1,2351.0,0.4252]
[1726605975531,1.6783,2351.1,2350.8,3.32]
[1726605975732,1.6783,2351.1,2350.8,3.74522]
[1726605975932,1.6783,2351.1,2350.8,0.42522]
[1726605976541,1.6783,2351.1,2350.7,4.29182635]
[1726605976734,1.6783,2351.1,2350.8,0.42523]
[1726605976940,1.6783,2351.1,2351.0,0.4252]
[1726605977136,1.6783,2351.1,2350.7,5.87032635]
[1726605977340,1.6783,2351.1,2351.0,0.4252]
[1726605978444,1.6783,2351.1,2350.9,0.4252]
[1726605978942,1.6783,2351.1,2350.7,5.87032635]
[1726605978943,1.6783,2351.1,2351.0,0.4252]
[1726605979150,1.6783,2351.1,2350.7,5.87032635]
[1726605979151,1.6783,2351.1,2350.9,0.4252]
[1726605979840,1.6783,2351.1,2350.7,5.87032635]
[1726605979841,1.6783,2351.1,2351.0,0.4252]
[1726605983550,1.6783,2351.1,2350.9,3.2078]
[1726605983551,5.9319,2351.1,2350.9,3.2078]
[1726605983735,1.6783,2351.1,2350.9,3.2078]
[1726605984646,1.6783,2351.1,2350.8,0.42523]
[1726605985044,1.6783,2351.1,2350.8,3.2078]
[1726605985348,1.6783,2351.1,2351.0,4.5052]
[1726605986050,1.6783,2351.1,2351.0,4.08]
[1726605986655,1.6783,2351.1,2351.0,4.5052]
[1726605987947,3.248,2351.3,2351.0,4.5052]
[1726605989047,3.248,2351.3,2351.0,4.08]
[1726605989355,3.248,2351.3,2351.0,4.5052]
[1726605989551,3.67315,2351.3,2350.8,3.2078]
[1726605989759,0.42521,2351.0,2350.5,3.2078]
[1726605990055,3.2078,2351.0,2350.4,4.5053]
[1726605990245,3.2078,2351.0,2350.5,0.42529]
[1726605990246,0.42524,2350.8,2350.5,0.42529]
[1726605990449,1.7135,2350.7,2350.4,4.08]
[1726605990652,1.7135,2350.7,2350.6,0.42527]
[1726605991155,10.6108,2351.3,2351.1,0.42517]
[1726605991543,7.403,2351.3,2351.1,0.42517]
[1726605991860,7.403,2351.3,2351.0,4.50518]
[1726605992660,7.403,2351.3,2351.1,0.42518]
[1726605992955,7.403,2351.3,2351.0,4.50519]
[1726605995159,7.82814,2351.3,2351.0,4.50519]
[1726605995349,7.82814,2351.3,2351.1,0.42518]
[1726605995855,7.4606,2351.2,2350.5,7.2878]
[1726605996152,14.4659,2351.3,2350.2,6.5795]
[1726605996153,0.42528,2350.6,2350.2,6.5795]
[1726605996355,0.42528,2350.6,2350.4,0.4253]
[1726605996764,0.42528,2350.6,2350.3,0.42531]
[1726605997061,1.702,2350.6,2350.4,0.42531]
[1726605997356,2.12728,2350.6,2350.4,0.42531]
[1726605997764,2.12728,2350.6,2350.4,0.4253]
[1726605997960,2.12728,2350.6,2350.4,3.7453]
[1726605998862,3.64805,2350.7,2350.5,0.42529]
[1726605999071,3.64805,2350.7,2350.6,3.32]
[1726605999557,7.90245,2350.7,2350.6,3.32]
[1726605999971,7.4772,2350.7,2350.6,3.74527]
[1726606000270,7.90245,2350.7,2350.6,3.32]
[1726606005863,7.90245,2350.7,2350.6,3.74527]
[1726606008165,11.11025,2350.7,2350.6,3.74527]
[1726606009962,6.85585,2350.7,2350.6,3.74527]
[1726606012262,3.91680073,2351.1,2350.6,3.32]
[1726606012263,6.57144493,2351.1,2350.6,3.32]
[1726606012575,0.42522,2350.9,2350.8,3.32]
[1726606013067,4.67882,2350.9,2350.8,3.32]
[1726606014466,4.67882,2350.9,2350.8,3.74523]
[1726606015264,4.67882,2350.9,2350.7,0.42524]
[1726606015468,2.07836493,2350.9,2350.7,0.42524]
[1726606015671,6.33196493,2350.9,2350.8,0.42523]
[1726606016473,6.5446841,2350.9,2350.8,0.42523]
[1726606017572,4.89153917,2350.9,2350.8,0.42523]
[1726606018671,7.0978399,2350.9,2350.8,0.42523]
[1726606019584,4.89153917,2350.9,2350.8,0.42523]
[1726606020377,9.70097406,2350.9,2350.7,0.42524]
[1726606020571,2.43504946,2350.8,2350.7,0.42524]
[1726606021086,6.68865157,2350.8,2350.7,0.42524]
[1726606021281,2.43505157,2350.8,2350.7,0.42524]
[1726606021586,6.47593029,2350.8,2350.7,0.42524]
[1726606021776,2.43505157,2350.8,2350.7,0.42524]
[1726606023285,2.22233029,2350.8,2350.7,0.42524]
[1726606023489,2.43505157,2350.8,2350.7,0.42524]
[1726606024282,0.21272128,2350.8,2350.7,0.42524]
[1726606024588,0.42525,2350.7,2350.4,0.42529]
[1726606024889,2.22515795,2350.6,2350.5,0.42529]
[1726606025089,2.43787923,2350.6,2350.5,0.42529]
[1726606025281,2.43787923,2350.6,2350.4,3.74529]
[1726606025477,1.66912341,2350.5,2350.4,3.74529]
[1726606025888,1.66912341,2350.5,2350.4,4.26901327]
[1726606026280,1.66912341,2350.5,2350.4,3.74529]
[1726606026484,1.66912341,2350.5,2350.4,4.26906001]
[1726606026685,1.66912341,2350.5,2350.4,3.32]
[1726606027483,0.21273735,2350.5,2350.4,3.32]
[1726606027886,2.22515795,2350.5,2350.4,3.32]
[1726606028090,2.4378953,2350.5,2350.4,3.32]
[1726606028601,15.29536685,2350.5,2350.0,3.2078]
[1726606028893,2.78214845,2350.2,2349.8,3.32]
[1726606029087,2.65078156,2350.0,2349.8,3.32]
[1726606029286,0.21273735,2349.9,2349.7,3.3112]
[1726606029484,1.6684299,2349.8,2349.7,3.3112]
[1726606030088,1.6684299,2349.8,2349.7,3.73663]
[1726606030392,4.42414845,2350.1,2349.8,0.42541]
[1726606030393,1.6684299,2349.9,2349.8,0.42541]
[1726606030691,1.6684299,2349.9,2349.8,3.74541]
[1726606031091,1.6684299,2349.9,2349.8,3.32]
[1726606032695,1.6684299,2349.9,2349.8,3.74541]
[1726606033385,1.6684299,2349.9,2349.8,3.32]
[1726606034189,1.6684299,2349.9,2349.8,3.74541]
[1726606034900,3.2078,2350.1,2349.8,3.74541]
[1726606035583,3.63317,2350.1,2349.8,3.32]
[1726606035783,3.63317,2350.1,2349.7,6.6312]
[1726606035998,0.42538,2350.0,2349.7,6.6312]
[1726606036388,3.2078,2350.1,2349.5,3.32]
[1726606036389,0.42543,2349.8,2349.5,3.32]
[1726606036695,0.42543,2349.8,2349.3,3.32]
[1726606036696,0.42543,2349.7,2349.3,3.32]
[1726606036893,3.2078,2349.5,2349.1,6.5923]
[1726606037188,3.2078,2349.5,2349.0,0.42555]
[1726606037395,2.0125,2349.4,2349.0,0.42555]
[1726606038392,3.2078,2349.5,2349.3,3.32]
[1726606039488,3.63327,2349.5,2349.3,3.32]
[1726606039990,5.29926916,2349.5,2349.3,3.32]
[1726606040388,9.55606916,2349.5,2349.3,3.32]
[1726606040589,1.87885438,2349.4,2349.3,3.32]
[1726606040891,1.66599916,2349.4,2349.3,3.32]
[1726606041291,1.66599916,2349.4,2349.3,3.7455]
[1726606041597,1.11061421,2349.4,2349.3,3.32]
[1726606042689,5.79290421,2349.4,2349.3,3.32]
[1726606043599,5.36741421,2349.4,2349.3,3.32]
[1726606043993,5.36741421,2349.4,2349.3,3.7455]
[1726606044493,4.2568,2349.4,2349.3,3.7455]
[1726606046100,7.4646,2349.4,2349.3,3.7455]
[1726606046703,7.89009,2349.4,2349.3,3.32]
[1726606047598,7.89009,2349.4,2349.3,3.7455]
[1726606047899,1.11061421,2349.5,2349.3,3.7455]
[1726606047900,1.11061421,2349.6,2349.3,3.32]
[1726606048101,0.42547,2349.5,2349.4,0.42548]
[1726606048504,4.256,2349.5,2349.4,0.42548]
[1726606048692,4.68147,2349.5,2349.4,0.42548]
[1726606049800,5.36661421,2349.5,2349.2,0.42552]
[1726606050001,0.4255,2349.3,2349.2,0.42552]
[1726606050803,5.2737,2349.4,2349.2,0.42552]
[1726606051697,5.2737,2349.4,2349.1,3.32]
[1726606051698,4.2568,2349.3,2348.8,3.54443957]
[1726606051905,0.42557,2349.0,2348.8,0.42559]
[1726606052103,0.42557,2349.0,2348.6,6.7248]
[1726606052104,0.42558,2348.9,2348.7,0.4256]
[1726606052599,0.42557,2349.0,2348.8,0.42559]
[1726606052799,0.42559,2348.9,2348.6,6.7248]
[1726606052990,0.42559,2348.9,2348.6,7.15042]
[1726606053194,0.42559,2348.9,2348.7,0.42561]
[1726606053800,4.27168,2349.1,2348.7,0.42561]
[1726606054006,4.27168,2349.1,2348.8,3.32]
[1726606054007,3.2078,2349.1,2348.8,3.32]
[1726606054606,0.42556,2349.0,2348.8,3.74558]
[1726606058509,0.42556,2349.0,2348.8,3.32]
[1726606058704,0.42556,2349.0,2348.8,3.7456]
[1726606059405,3.63335,2349.1,2348.8,3.7456]
[1726606060701,3.63335,2349.1,2348.8,3.32]
[1726606062099,0.42558,2348.9,2348.6,6.7248]
[1726606062301,3.2078,2349.1,2348.7,0.42561]
[1726606062302,0.42557,2349.0,2348.7,0.42561]
[1726606062509,3.63336,2349.1,2348.8,0.4256]
[1726606064620,0.42556,2349.0,2348.6,6.7248]
[1726606064815,3.2078,2349.1,2348.6,6.7248]
[1726606065111,3.63335,2349.1,2348.8,0.42559]
[1726606066013,0.42556,2349.0,2348.7,0.4256]
[1726606066224,3.63335,2349.1,2348.8,0.42559]